bitfinex-derivatives/quotes_BTCF0:USTF0_20260104
["timestamp","ask_amount","ask_price","bid_price","bid_amount"]
[1767503814233,0.02038531,91458.0,91442.0,0.01094]
[1767503814433,0.00944731,91454.0,91442.0,0.01094]
[1767503814628,0.02811882,91455.0,91442.0,0.01094]
[1767503814933,0.010938,91458.0,91442.0,0.01094]
[1767503815333,0.00944731,91457.0,91442.0,0.01094]
[1767503816130,0.010938,91458.0,91442.0,0.02055844]
[1767503816928,0.093,91459.0,91442.0,0.02055844]
[1767503818637,0.093,91459.0,91444.0,0.01094]
[1767503824542,0.00928812,91458.0,91444.0,0.01094]
[1767503824731,0.00928812,91456.0,91444.0,0.01094]
[1767503827246,0.03194393,91457.0,91444.0,0.01094]
[1767503827434,0.093,91459.0,91444.0,0.01094]
[1767503828048,0.10228812,91459.0,91444.0,0.01094]
[1767503828643,0.00016403,91460.0,91441.0,0.00983367]
[1767503828840,0.02571665,91459.0,91445.0,0.01094]
[1767503829038,0.00016403,91460.0,91445.0,0.01094]
[1767503829239,0.02571665,91459.0,91445.0,0.01094]
[1767503829436,0.00016403,91460.0,91445.0,0.01094]
[1767503829635,0.00016403,91460.0,91448.0,0.01094]
[1767503829840,0.00016403,91460.0,91450.0,0.010939]
[1767503833947,0.13423205,91468.0,91452.0,0.010939]
[1767503834154,0.02560845,91467.0,91452.0,0.010939]
[1767503834351,0.13423205,91468.0,91452.0,0.010939]
[1767503835454,0.00928812,91467.0,91452.0,0.010939]
[1767503836362,0.00928812,91466.0,91452.0,0.010939]
[1767503839466,0.03194393,91467.0,91452.0,0.010939]
[1767503841073,0.04123205,91467.0,91452.0,0.010939]
[1767503850279,0.00973668,91466.0,91452.0,0.010939]
[1767503853381,0.02560568,91465.0,91452.0,0.010939]
[1767503853578,0.00973668,91466.0,91452.0,0.010939]
[1767503853776,0.02560571,91465.0,91452.0,0.010939]
[1767503854082,0.00973668,91466.0,91452.0,0.010939]
[1767503854382,0.02560572,91465.0,91452.0,0.010939]
[1767503854583,0.00973668,91466.0,91452.0,0.010939]
[1767503854784,0.02560737,91465.0,91452.0,0.010939]
[1767503854986,0.00973668,91466.0,91452.0,0.010939]
[1767503855185,0.02560737,91465.0,91452.0,0.010939]
[1767503855386,0.00973668,91466.0,91452.0,0.010939]
[1767503855592,0.02560946,91465.0,91452.0,0.010939]
[1767503855784,0.00973668,91466.0,91452.0,0.010939]
[1767503856093,0.02560953,91465.0,91452.0,0.010939]
[1767503856388,0.00973668,91466.0,91452.0,0.010939]
[1767503856690,0.025612,91465.0,91452.0,0.010939]
[1767503856985,0.00973668,91466.0,91452.0,0.010939]
[1767503857187,0.025612,91465.0,91452.0,0.010939]
[1767503857386,0.025612,91464.0,91452.0,0.010939]
[1767503857582,0.00973668,91466.0,91452.0,0.010939]
[1767503857788,0.02561508,91465.0,91452.0,0.010939]
[1767503857984,0.02561508,91464.0,91449.0,0.010939]
[1767503858186,0.00973668,91466.0,91449.0,0.010939]
[1767503858390,0.02561895,91465.0,91449.0,0.010939]
[1767503858691,0.02561895,91464.0,91449.0,0.010939]
[1767503858888,0.00973668,91466.0,91449.0,0.010939]
[1767503859189,0.02561895,91465.0,91449.0,0.010939]
[1767503859386,0.02561895,91464.0,91449.0,0.010939]
[1767503859586,0.02561895,91463.0,91449.0,0.010939]
[1767503859786,0.00973668,91466.0,91449.0,0.010939]
[1767503859988,0.02562437,91465.0,91449.0,0.010939]
[1767503860182,0.02562437,91464.0,91449.0,0.010939]
[1767503860489,0.02562437,91463.0,91451.0,0.010939]
[1767503860789,0.00973668,91466.0,91451.0,0.010939]
[1767503860981,0.02562837,91465.0,91451.0,0.010939]
[1767503861181,0.02562837,91464.0,91451.0,0.010939]
[1767503861380,0.02562837,91463.0,91451.0,0.010939]
[1767503861586,0.00973668,91466.0,91451.0,0.010939]
[1767503861783,0.0256322,91465.0,91451.0,0.010939]
[1767503862082,0.0256322,91464.0,91451.0,0.010939]
[1767503862282,0.0256322,91463.0,91451.0,0.010939]
[1767503862490,0.00973668,91466.0,91451.0,0.010939]
[1767503862690,0.0256307,91465.0,91451.0,0.010939]
[1767503862893,0.0256307,91464.0,91451.0,0.010939]
[1767503863087,0.0256307,91463.0,91451.0,0.010939]
[1767503863289,0.00973668,91466.0,91451.0,0.010939]
[1767503865087,0.10242725,91468.0,91451.0,0.010939]
[1767503865292,0.0350635,91467.0,91451.0,0.010939]
[1767503865492,0.00942725,91467.0,91451.0,0.010939]
[1767503874095,0.025632,91466.0,91451.0,0.010939]
[1767503874294,0.00942725,91467.0,91451.0,0.010939]
[1767503874495,0.0256319,91466.0,91451.0,0.010939]
[1767503874701,0.00942725,91467.0,91451.0,0.010939]
[1767503874901,0.02563208,91466.0,91451.0,0.010939]
[1767503875103,0.00942725,91467.0,91451.0,0.010939]
[1767503875403,0.02563207,91466.0,91451.0,0.010939]
[1767503875603,0.00942725,91467.0,91451.0,0.010939]
[1767503875798,0.02563191,91466.0,91451.0,0.010939]
[1767503875997,0.00942725,91467.0,91451.0,0.010939]
[1767503876197,0.02563193,91466.0,91451.0,0.010939]
[1767503876397,0.00942725,91467.0,91451.0,0.010939]
[1767503876697,0.02563187,91466.0,91451.0,0.010939]
[1767503876898,0.00942725,91467.0,91451.0,0.010939]
[1767503877098,0.0256318,91466.0,91451.0,0.010939]
[1767503877399,0.093,91468.0,91451.0,0.010939]
[1767503877597,0.02563166,91467.0,91451.0,0.010939]
[1767503877903,0.02563166,91466.0,91451.0,0.010939]
[1767503878097,0.10242725,91468.0,91451.0,0.010939]
[1767503878299,0.02563166,91467.0,91451.0,0.010939]
[1767503878498,0.02563166,91466.0,91453.0,0.010939]
[1767503878699,0.10242725,91468.0,91453.0,0.010939]
[1767503878900,0.02563136,91467.0,91453.0,0.010939]
[1767503879204,0.02563136,91466.0,91453.0,0.010939]
[1767503879405,0.10242725,91468.0,91453.0,0.010939]
[1767503879596,0.02563096,91467.0,91453.0,0.010939]
[1767503879797,0.02563096,91466.0,91458.0,0.010938]
[1767503879997,0.10242725,91475.0,91456.0,0.00981993]
[1767503880194,0.02562935,91474.0,91456.0,0.00981993]
[1767503880395,0.02562935,91473.0,91456.0,0.00981993]
[1767503880598,0.02562935,91472.0,91460.0,0.010938]
[1767503880799,0.10242725,91475.0,91460.0,0.010938]
[1767503881006,0.02562698,91474.0,91460.0,0.010938]
[1767503881309,0.02562698,91473.0,91460.0,0.010938]
[1767503881610,0.07109625,91480.0,91460.0,0.010938]
[1767503881611,0.00950849,91478.0,91464.0,0.010938]
[1767503882707,0.00950849,91477.0,91464.0,0.010938]
[1767503890013,0.00950849,91477.0,91461.0,0.010938]
[1767503891023,0.00950849,91477.0,91463.0,0.010938]
[1767503891216,0.00950849,91476.0,91463.0,0.010938]
[1767503891522,0.00950849,91470.0,91456.0,0.010939]
[1767503891822,0.0497027,91469.0,91456.0,0.010939]
[1767503894227,0.0497027,91469.0,91457.0,0.093]
[1767503894921,0.0497027,91469.0,91458.0,0.010938]
[1767503895122,0.04019421,91469.0,91457.0,0.093]
[1767503895524,0.04019421,91469.0,91457.0,0.103939]
[1767503901625,0.00950849,91471.0,91457.0,0.103939]
[1767503901829,0.00950849,91476.0,91461.0,0.010938]
[1767503903726,0.04019421,91477.0,91463.0,0.010938]
[1767503904726,0.0497027,91477.0,91463.0,0.010938]
[1767503907125,0.0497027,91477.0,91460.0,0.010938]
[1767503908027,0.00950849,91476.0,91462.0,0.010938]
[1767503908531,0.00950849,91476.0,91465.0,0.010937]
[1767503908731,0.00950849,91483.0,91467.0,0.010937]
[1767503909025,0.00950849,91481.0,91467.0,0.010937]
[1767503909218,0.10621063,91480.0,91467.0,0.010937]
[1767503909425,0.02560589,91479.0,91467.0,0.010937]
[1767503911724,0.03549945,91479.0,91467.0,0.010937]
[1767503911925,0.00989356,91479.0,91467.0,0.010937]
[1767503912531,0.00989356,91479.0,91469.0,0.010937]
[1767503913433,0.05004914,91481.0,91469.0,0.010937]
[1767503913633,0.00985493,91480.0,91469.0,0.010937]
[1767503914234,0.00985493,91480.0,91466.0,0.01110103]
[1767503914436,0.04983247,91480.0,91466.0,0.01110103]
[1767503914632,0.00985493,91479.0,91466.0,0.01110103]
[1767503915032,0.00985493,91479.0,91466.0,0.00016403]
[1767503915231,0.04983247,91479.0,91466.0,0.00016403]
[1767503915435,0.00985493,91478.0,91466.0,0.00016403]
[1767503925744,0.00985493,91477.0,91466.0,0.00016403]
[1767503929838,0.04983247,91477.0,91466.0,0.00016403]
[1767503930242,0.00985493,91476.0,91466.0,0.00016403]
[1767503931545,0.00985493,91476.0,91467.0,0.010937]
[1767503932640,0.00985493,91474.0,91467.0,0.010937]
[1767503933340,0.03997754,91475.0,91467.0,0.010937]
[1767503933746,0.03997754,91475.0,91469.0,0.010937]
[1767503934847,0.03997754,91475.0,91466.0,0.01110103]
[1767503937941,0.00985493,91477.0,91468.0,0.010937]
[1767503942258,0.09296,91485.0,91468.0,0.010937]
[1767503942553,0.00972769,91487.0,91466.0,0.00931771]
[1767503942757,0.10268769,91486.0,91466.0,0.00931771]
[1767503942950,0.00972769,91484.0,91466.0,0.00016403]
[1767503943557,0.00972769,91482.0,91466.0,0.00016403]
[1767503944354,0.00972769,91482.0,91470.0,0.010937]
[1767503946962,0.09296,91486.0,91470.0,0.010937]
[1767503947255,0.00972769,91485.0,91470.0,0.010937]
[1767503947560,0.00972769,91484.0,91470.0,0.010937]
[1767503949160,0.05117672,91484.0,91470.0,0.010937]
[1767503949458,0.00972769,91483.0,91470.0,0.010937]
[1767503952171,0.00972769,91482.0,91472.0,0.010937]
[1767503954969,0.00972769,91481.0,91472.0,0.010937]
[1767503955681,0.10268769,91486.0,91472.0,0.010937]
[1767503955971,0.03505823,91485.0,91472.0,0.010937]
[1767503956159,0.00972769,91485.0,91472.0,0.010937]
[1767503956571,0.00972769,91484.0,91472.0,0.010937]
[1767503957272,0.00972769,91482.0,91472.0,0.010937]
[1767503958271,0.04144903,91483.0,91472.0,0.010937]
[1767503959569,0.00972769,91482.0,91472.0,0.010937]
[1767503959770,0.00972769,91481.0,91466.0,0.01110103]
[1767503959977,0.09296,91486.0,91466.0,0.01110103]
[1767503959978,0.00972769,91475.0,91466.0,0.00016403]
[1767503960276,0.00972769,91474.0,91466.0,0.00016403]
[1767503963373,0.04144903,91475.0,91466.0,0.00016403]
[1767503966681,0.04144903,91475.0,91467.0,0.010937]
[1767503967378,0.05117672,91481.0,91467.0,0.010937]
[1767503967583,0.09296,91486.0,91467.0,0.010937]
[1767503967584,0.00972769,91479.0,91467.0,0.010937]
[1767503972083,0.00972769,91479.0,91469.0,0.010937]
[1767503976988,0.0550986,91484.0,91469.0,0.010937]
[1767503977187,0.00943375,91482.0,91469.0,0.010937]
[1767503977773,0.00943375,91482.0,91466.0,0.01110103]
[1767503984186,0.00943375,91482.0,91468.0,0.010937]
[1767503993499,0.02586607,91481.0,91468.0,0.010937]
[1767503993690,0.02586607,91480.0,91468.0,0.010937]
[1767503993884,0.02586607,91479.0,91468.0,0.010937]
[1767503994089,0.00943375,91482.0,91468.0,0.010937]
[1767503994309,0.02586606,91481.0,91468.0,0.010937]
[1767503994596,0.02586606,91480.0,91468.0,0.010937]
[1767503994797,0.02586606,91479.0,91468.0,0.010937]
[1767503994999,0.00943375,91482.0,91468.0,0.010937]
[1767503995191,0.02586761,91481.0,91468.0,0.010937]
[1767503995392,0.02586761,91480.0,91468.0,0.010937]
[1767503995593,0.02586761,91479.0,91468.0,0.010937]
[1767503995792,0.00943375,91482.0,91468.0,0.010937]
[1767503995993,0.02586766,91481.0,91468.0,0.010937]
[1767503996192,0.02586766,91480.0,91468.0,0.010937]
[1767503996394,0.02586766,91479.0,91468.0,0.010937]
[1767503996696,0.00943375,91482.0,91468.0,0.010937]
[1767503996894,0.02586803,91481.0,91468.0,0.010937]
[1767503997093,0.02586803,91480.0,91468.0,0.010937]
[1767503997392,0.02586803,91479.0,91468.0,0.010937]
[1767503997593,0.00943375,91482.0,91468.0,0.010937]
[1767503997798,0.02586809,91481.0,91468.0,0.010937]
[1767503997997,0.02586809,91480.0,91468.0,0.010937]
[1767503998299,0.02586809,91479.0,91468.0,0.010937]
[1767503998602,0.00943375,91482.0,91468.0,0.010937]
[1767503998795,0.02586863,91481.0,91470.0,0.010937]
[1767503999101,0.09296,91486.0,91470.0,0.010937]
[1767503999397,0.10239375,91486.0,91470.0,0.010937]
[1767503999600,0.00943375,91485.0,91470.0,0.010937]
[1767504000206,0.09296,91486.0,91466.0,0.05434978]
[1767504000498,0.09296,91497.0,91484.0,0.00932902]
[1767504000802,0.0710766,91500.0,91483.0,0.05579173]
[1767504001502,0.08106311,91500.0,91483.0,0.010935]
[1767504003691,0.00998651,91500.0,91483.0,0.010935]
[1767504003896,0.08106311,91500.0,91483.0,0.010935]
[1767504007709,0.00998651,91499.0,91483.0,0.010935]
[1767504008410,0.09296,91501.0,91486.0,0.00932902]
[1767504008912,0.09296,91501.0,91485.0,0.010935]
[1767504009416,0.09296,91501.0,91487.0,0.010935]
[1767504011911,0.04258068,91504.0,91489.0,0.010935]
[1767504012116,0.09296,91506.0,91489.0,0.010935]
[1767504012320,0.0256977,91505.0,91489.0,0.010935]
[1767504012512,0.10294651,91506.0,91489.0,0.010935]
[1767504012712,0.02569589,91505.0,91489.0,0.010935]
[1767504012902,0.10294651,91506.0,91489.0,0.010935]
[1767504013216,0.00998651,91505.0,91491.0,0.010934]
[1767504013417,0.00998651,91505.0,91492.0,0.010934]
[1767504015707,0.13554068,91506.0,91492.0,0.010934]
[1767504016808,0.09296,91506.0,91492.0,0.010934]
[1767504017420,0.10294651,91506.0,91492.0,0.010934]
[1767504018318,0.09296,91506.0,91492.0,0.010934]
[1767504019921,0.10294651,91506.0,91492.0,0.010934]
[1767504020419,0.10294651,91515.0,91497.0,0.010934]
[1767504020612,0.00998651,91518.0,91500.0,0.08040562]
[1767504020917,0.06349819,91522.0,91501.0,0.00932902]
[1767504021311,0.00998651,91521.0,91501.0,0.00932902]
[1767504022208,0.00998651,91521.0,91507.0,0.010932]
[1767504022413,0.00998651,91521.0,91501.0,0.00932902]
[1767504022614,0.09296,91524.0,91505.0,0.05418575]
[1767504022921,0.09296,91524.0,91509.0,0.010932]
[1767504023110,0.10294651,91524.0,91509.0,0.010932]
[1767504023518,0.10294651,91524.0,91506.0,0.010933]
[1767504023719,0.00998651,91523.0,91506.0,0.010933]
[1767504025121,0.09296,91524.0,91509.0,0.010932]
[1767504025320,0.09296,91524.0,91507.0,0.00932902]
[1767504025521,0.09296,91524.0,91508.0,0.010932]
[1767504026520,0.00998651,91523.0,91508.0,0.010932]
[1767504026823,0.05256719,91512.0,91500.0,0.00016394]
[1767504027011,0.0710766,91511.0,91500.0,0.00016394]
[1767504027214,0.11365728,91511.0,91500.0,0.00016394]
[1767504027426,0.11365728,91511.0,91496.0,0.09296]
[1767504027626,0.11377259,91511.0,91496.0,0.09296]
[1767504027825,0.00011531,91510.0,91494.0,0.010934]
[1767504028022,0.00011531,91510.0,91495.0,0.09296]
[1767504028220,0.00011531,91510.0,91496.0,0.010934]
[1767504030122,0.11365728,91511.0,91496.0,0.010934]
[1767504030325,0.0710766,91511.0,91496.0,0.010934]
[1767504031426,0.00016364,91512.0,91496.0,0.010934]
[1767504034422,0.00016364,91512.0,91498.0,0.010934]
[1767504037935,0.00016364,91512.0,91495.0,0.103894]
[1767504039038,0.00016364,91512.0,91497.0,0.010934]
[1767504041440,0.0446269,91499.0,91476.0,0.05577202]
[1767504041647,0.40016364,91512.0,91476.0,0.05577202]
[1767504041648,0.0710766,91486.0,91476.0,0.05577202]
[1767504041837,0.010935,91490.0,91476.0,0.05577202]
[1767504041838,0.0820116,91490.0,91476.0,0.05577202]
[1767504042041,0.0820116,91490.0,91472.0,0.10216492]
[1767504042245,0.0820116,91490.0,91473.0,0.00924492]
[1767504042450,0.0820116,91490.0,91474.0,0.00924492]
[1767504042651,0.0710766,91490.0,91474.0,0.05577202]
[1767504042850,0.0710766,91490.0,91475.0,0.00924492]
[1767504043737,0.00024586,91489.0,91472.0,0.00016394]
[1767504048358,0.00017566,91481.0,91461.0,0.1394871]
[1767504048552,0.00017566,91481.0,91461.0,0.14873202]
[1767504048859,0.00017566,91481.0,91462.0,0.00924492]
[1767504049159,0.00017566,91481.0,91465.0,0.010938]
[1767504050859,0.00017566,91481.0,91462.0,0.02034686]
[1767504051450,0.00017566,91481.0,91462.0,0.06687396]
[1767504051652,0.00017566,91481.0,91463.0,0.00924492]
[1767504051851,0.00017566,91481.0,91464.0,0.010938]
[1767504052252,0.0710766,91482.0,91464.0,0.010938]
[1767504052451,0.0555629,91483.0,91464.0,0.010938]
[1767504053455,0.0555619,91483.0,91464.0,0.010938]
[1767504053865,0.05572183,91483.0,91464.0,0.010938]
[1767504057766,0.05572183,91483.0,91466.0,0.010937]
[1767504059667,0.00017259,91482.0,91463.0,0.02018292]
[1767504060162,0.010936,91481.0,91463.0,0.02018292]
[1767504060550,0.01110859,91482.0,91467.0,0.010937]
[1767504060755,0.01110859,91482.0,91463.0,0.00924492]
[1767504060955,0.010936,91480.0,91463.0,0.02018292]
[1767504061156,0.010936,91478.0,91463.0,0.02018292]
[1767504061356,0.010936,91479.0,91463.0,0.02018292]
[1767504062367,0.00017259,91481.0,91465.0,0.010937]
[1767504064154,0.010936,91482.0,91465.0,0.010937]
[1767504064360,0.010936,91482.0,91465.0,0.02070267]
[1767504072567,0.010936,91480.0,91465.0,0.02070267]
[1767504074373,0.010936,91480.0,91466.0,0.00976567]
[1767504075676,0.010936,91475.0,91465.0,0.04579677]
[1767504075871,0.010936,91478.0,91465.0,0.04579677]
[1767504076574,0.010936,91479.0,91465.0,0.04579677]
[1767504078274,0.010936,91479.0,91465.0,0.05556244]
[1767504082873,0.103896,91482.0,91465.0,0.06650044]
[1767504086775,0.010936,91480.0,91465.0,0.06650044]
[1767504089980,0.010936,91480.0,91466.0,0.00952186]
[1767504090185,0.010936,91480.0,91467.0,0.00952186]
[1767504091288,0.010936,91480.0,91466.0,0.04538794]
[1767504091690,0.010936,91480.0,91467.0,0.00952186]
[1767504094790,0.09296,91489.0,91476.0,0.00972733]
[1767504094991,0.09296,91489.0,91462.0,0.00016394]
[1767504094992,0.09296,91489.0,91469.0,0.010937]
[1767504095787,0.010935,91488.0,91469.0,0.010937]
[1767504096899,0.010935,91488.0,91471.0,0.00972733]
[1767504097099,0.010935,91488.0,91473.0,0.05571009]
[1767504097299,0.010935,91488.0,91474.0,0.00972733]
[1767504097691,0.09296,91489.0,91469.0,0.010937]
[1767504097692,0.09296,91489.0,91477.0,0.00972733]
[1767504097892,0.09296,91489.0,91478.0,0.00972733]
[1767504099304,0.09296,91489.0,91469.0,0.010937]
[1767504099305,0.08296,91489.0,91481.0,0.00972733]
[1767504099505,0.07296,91489.0,91481.0,0.00972733]
[1767504101007,0.07296,91489.0,91480.0,0.04598276]
[1767504101205,0.07296,91489.0,91477.0,0.00972733]
[1767504103300,0.07296,91489.0,91474.0,0.05571009]
[1767504103598,0.07296,91489.0,91475.0,0.00972733]
[1767504111213,0.07296,91489.0,91474.0,0.04598276]
[1767504111818,0.07296,91489.0,91475.0,0.010936]
[1767504114222,0.083895,91489.0,91472.0,0.02066433]
[1767504114632,0.02586023,91488.0,91472.0,0.02066433]
[1767504114921,0.083895,91489.0,91472.0,0.02066433]
[1767504115323,0.02586046,91488.0,91472.0,0.02066433]
[1767504115624,0.00966854,91486.0,91470.0,0.09296]
[1767504115823,0.00966854,91485.0,91470.0,0.09296]
[1767504116420,0.04834414,91486.0,91470.0,0.09296]
[1767504116622,0.04834414,91486.0,91471.0,0.010937]
[1767504118918,0.00966854,91488.0,91471.0,0.010937]
[1767504122126,0.07296,91489.0,91473.0,0.010937]
[1767504122432,0.02587171,91488.0,91474.0,0.00944393]
[1767504122628,0.07296,91489.0,91474.0,0.00944393]
[1767504122828,0.02587175,91488.0,91473.0,0.06142278]
[1767504123033,0.07296,91489.0,91473.0,0.06142278]
[1767504123333,0.02587183,91488.0,91473.0,0.06142278]
[1767504123631,0.07296,91489.0,91473.0,0.06142278]
[1767504124028,0.07296,91489.0,91473.0,0.010937]
[1767504124327,0.07296,91489.0,91475.0,0.02037993]
[1767504126537,0.07296,91489.0,91475.0,0.010936]
[1767504128231,0.00953972,91488.0,91475.0,0.010936]
[1767504128436,0.00953972,91487.0,91472.0,0.010937]
[1767504128638,0.00953972,91487.0,91475.0,0.010936]
[1767504131038,0.04819237,91488.0,91475.0,0.010936]
[1767504131230,0.00953972,91490.0,91475.0,0.010936]
[1767504131434,0.00953972,91490.0,91470.0,0.09296]
[1767504131435,0.00953972,91503.0,91484.0,0.00944393]
[1767504131639,0.12977966,91502.0,91485.0,0.010935]
[1767504131937,0.11884666,91501.0,91487.0,0.010935]
[1767504132236,0.02588666,91500.0,91487.0,0.010935]
[1767504132832,0.02588666,91500.0,91488.0,0.00944393]
[1767504133137,0.00016394,91503.0,91491.0,0.02037793]
[1767504133338,0.00016394,91503.0,91491.0,0.010934]
[1767504138343,0.4,91502.0,91491.0,0.010934]
[1767504141344,0.4,91502.0,91488.0,0.010935]
[1767504141544,0.00016394,91503.0,91488.0,0.010935]
[1767504142138,0.00016394,91503.0,91491.0,0.00944393]
[1767504142336,0.09296,91504.0,91492.0,0.00944393]
[1767504143044,0.11343172,91512.0,91494.0,0.010934]
[1767504143348,0.11359536,91512.0,91494.0,0.010934]
[1767504145444,0.11359536,91512.0,91494.0,0.02037793]
[1767504145943,0.10405564,91512.0,91494.0,0.02037793]
[1767504146531,0.10405564,91512.0,91496.0,0.010934]
[1767504146840,0.09312364,91512.0,91499.0,0.00944393]
[1767504147949,0.00016364,91512.0,91500.0,0.010933]
[1767504148244,0.010931,91519.0,91502.0,0.02037693]
[1767504148433,0.103891,91519.0,91502.0,0.02037693]
[1767504148731,0.09296,91519.0,91504.0,0.00944393]
[1767504148935,0.09296,91519.0,91504.0,0.02037693]
[1767504149131,0.103891,91519.0,91504.0,0.00944393]
[1767504150043,0.103891,91519.0,91507.0,0.00995488]
[1767504150243,0.09296,91526.0,91510.0,0.010932]
[1767504150838,0.00976109,91537.0,91517.0,0.05202194]
[1767504151039,0.0524359,91527.0,91518.0,0.00016394]
[1767504151348,0.07106893,91520.0,91503.0,0.010933]
[1767504151550,0.07106893,91520.0,91505.0,0.010933]
[1767504152144,0.00016394,91522.0,91510.0,0.010932]
[1767504152743,0.00016394,91522.0,91514.0,0.010932]
[1767504153552,0.00016394,91522.0,91514.0,0.02033358]
[1767504154145,0.00016394,91522.0,91514.0,0.010932]
[1767504155154,0.09296,91528.0,91514.0,0.010932]
[1767504156954,0.09296,91528.0,91512.0,0.00940158]
[1767504158346,0.09296,91528.0,91513.0,0.010932]
[1767504165462,0.04842703,91531.0,91513.0,0.010932]
[1767504165764,0.00958013,91530.0,91513.0,0.010932]
[1767504168165,0.00958013,91530.0,91515.0,0.010931]
[1767504169869,0.01093,91525.0,91509.0,0.00940158]
[1767504170565,0.00958013,91523.0,91504.0,0.09296]
[1767504170863,0.00958013,91523.0,91508.0,0.010932]
[1767504171460,0.04842703,91524.0,91508.0,0.010932]
[1767504171655,0.04842703,91524.0,91509.0,0.09292]
[1767504171869,0.04842703,91524.0,91510.0,0.09292]
[1767504172067,0.04842703,91524.0,91508.0,0.010932]
[1767504172256,0.04842703,91524.0,91509.0,0.09292]
[1767504172670,0.04842703,91524.0,91510.0,0.010932]
[1767504173475,0.04842703,91524.0,91512.0,0.010932]
[1767504173971,0.04842703,91524.0,91509.0,0.103852]
[1767504174972,0.04842703,91524.0,91509.0,0.010932]
[1767504175169,0.05800716,91524.0,91510.0,0.09292]
[1767504175574,0.05800716,91524.0,91510.0,0.103852]
[1767504176176,0.05800716,91524.0,91510.0,0.09292]
[1767504177182,0.05800716,91524.0,91511.0,0.010932]
[1767504181183,0.05800716,91524.0,91510.0,0.09292]
[1767504181891,0.00998365,91516.0,91503.0,0.00016394]
[1767504182090,0.06165728,91516.0,91503.0,0.00016394]
[1767504182287,0.00998365,91515.0,91503.0,0.00016394]
[1767504182492,0.00998365,91515.0,91504.0,0.010933]
[1767504182990,0.00998365,91514.0,91503.0,0.00016394]
[1767504187694,0.06165728,91514.0,91503.0,0.00016394]
[1767504188396,0.06165728,91514.0,91504.0,0.010933]
[1767504188596,0.06165728,91514.0,91503.0,0.00016394]
[1767504189293,0.09292,91524.0,91499.0,0.0033179]
[1767504189294,0.06165728,91506.0,91499.0,0.0033179]
[1767504189598,0.010932,91516.0,91497.0,0.09292]
[1767504189791,0.010932,91516.0,91498.0,0.010934]
[1767504190303,0.01109594,91516.0,91501.0,0.010933]
[1767504190595,0.01109594,91516.0,91498.0,0.00016394]
[1767504190596,0.01109594,91516.0,91498.0,0.01109794]
[1767504191400,0.00583123,91515.0,91498.0,0.01109794]
[1767504191900,0.00569488,91514.0,91498.0,0.01109794]
[1767504194301,0.00569488,91514.0,91501.0,0.010933]
[1767504194596,0.00547229,91503.0,91486.0,0.05249661]
[1767504194782,0.00547229,91501.0,91487.0,0.010935]
[1767504194983,0.00547229,91501.0,91486.0,0.14541661]
[1767504195199,0.010933,91500.0,91486.0,0.14541661]
[1767504195398,0.00547229,91501.0,91486.0,0.14541661]
[1767504195783,0.00547229,91501.0,91487.0,0.010935]
[1767504197001,0.00547229,91501.0,91489.0,0.010935]
[1767504200098,0.00524931,91505.0,91489.0,0.010935]
[1767504206603,0.00524931,91505.0,91492.0,0.010934]
[1767504209200,0.00524931,91505.0,91489.0,0.010935]
[1767504209402,0.00524931,91505.0,91488.0,0.010935]
[1767504209600,0.00524931,91505.0,91490.0,0.010934]
[1767504210996,0.010933,91504.0,91490.0,0.010934]
[1767504212306,0.00524931,91505.0,91488.0,0.010935]
[1767504213801,0.01618231,91505.0,91488.0,0.06093373]
[1767504216601,0.00524931,91505.0,91488.0,0.04999873]
[1767504216800,0.04466959,91510.0,91488.0,0.04999873]
[1767504217001,0.00494132,91509.0,91488.0,0.04999873]
[1767504217808,0.00494132,91509.0,91488.0,0.05935732]
[1767504218409,0.010933,91505.0,91489.0,0.06093373]
[1767504221211,0.0158681,91508.0,91489.0,0.04999873]
[1767504221609,0.0158681,91508.0,91489.0,0.05935732]
[1767504221808,0.0158681,91508.0,91491.0,0.04999873]
[1767504222313,0.0158681,91508.0,91492.0,0.010934]
[1767504223013,0.010933,91506.0,91491.0,0.04999873]
[1767504224713,0.010933,91506.0,91491.0,0.06093273]
[1767504226015,0.010933,91503.0,91491.0,0.04999873]
[1767504226216,0.00489472,91505.0,91486.0,0.04999873]
[1767504226419,0.010934,91493.0,91479.0,0.00935859]
[1767504226606,0.010935,91491.0,91479.0,0.00935859]
[1767504227002,0.010934,91494.0,91479.0,0.00935859]
[1767504228610,0.010934,91494.0,91477.0,0.10405994]
[1767504228813,0.010934,91494.0,91477.0,0.16341726]
[1767504229019,0.010934,91494.0,91478.0,0.05935732]
[1767504229217,0.05369907,91496.0,91477.0,0.00016394]
[1767504229513,0.00500463,91494.0,91477.0,0.00016394]
[1767504230117,0.010935,91487.0,91468.0,0.05935732]
[1767504230418,0.00501804,91489.0,91469.0,0.05935732]
[1767504230718,0.00501804,91489.0,91471.0,0.05935732]
[1767504230918,0.010935,91490.0,91473.0,0.010937]
[1767504231122,0.05354854,91492.0,91473.0,0.010937]
[1767504231512,0.06448254,91492.0,91476.0,0.010936]
[1767504231717,0.01595204,91492.0,91476.0,0.010936]
[1767504232319,0.01595204,91492.0,91473.0,0.07029432]
[1767504232513,0.09296,91493.0,91482.0,0.05935732]
[1767504232718,0.09296,91493.0,91484.0,0.05935732]
[1767504235328,0.00016394,91496.0,91484.0,0.05935732]
[1767504235515,0.09296,91495.0,91484.0,0.05935732]
[1767504236223,0.09296,91495.0,91484.0,0.04999873]
[1767504239229,0.09296,91495.0,91485.0,0.05935732]
[1767504240828,0.09296,91495.0,91485.0,0.04999873]
[1767504241017,0.00016394,91496.0,91485.0,0.04999873]
[1767504241221,0.010933,91501.0,91490.0,0.05512932]
[1767504241522,0.09296,91505.0,91495.0,0.05512932]
[1767504241726,0.010933,91502.0,91495.0,0.0454643]
[1767504241929,0.010933,91502.0,91491.0,0.00966502]
[1767504243721,0.010933,91504.0,91491.0,0.00966502]
[1767504246633,0.010933,91504.0,91491.0,0.05512932]
[1767504247834,0.010933,91504.0,91492.0,0.05512932]
[1767504248532,0.09296,91505.0,91492.0,0.05512932]
[1767504251033,0.103893,91505.0,91492.0,0.05512932]
[1767504251331,0.010934,91499.0,91487.0,0.00016394]
[1767504253028,0.00583858,91501.0,91487.0,0.00016394]
[1767504255038,0.08199239,91502.0,91487.0,0.00016394]
[1767504258037,0.09296,91505.0,91494.0,0.05512932]
[1767504258236,0.02682211,91504.0,91494.0,0.05512932]
[1767504258427,0.02682211,91503.0,91494.0,0.0454643]
[1767504258632,0.09296,91505.0,91494.0,0.0454643]